fUSD/lending_fUSD_20250207
["ID","MTS","AMOUNT","RATE_DAILY","PERIOD"]
[352104409,1738949443002,-500.0,0.00016438,2]
[352104411,1738949443011,-500.0,0.00016438,2]
[352104413,1738949443021,-2737.71,0.00016438,2]
[352104415,1738949443030,-500.0,0.00016438,2]
[352104417,1738949443039,-552.42,0.00016438,2]
[352104419,1738949443048,-969.25,0.00016438,2]
[352104421,1738949443057,-500.0,0.00016438,2]
[352104423,1738949443066,-1191.92,0.00016438,2]
[352104425,1738949443075,-500.0,0.00016438,2]
[352104427,1738949443085,-500.0,0.00016438,2]
[352104429,1738949443094,-500.0,0.00016438,2]
[352104431,1738949443103,-1367.41,0.00016438,2]
[352104433,1738949443114,-1414.27,0.00016438,2]
[352104435,1738949443123,-500.0,0.00016438,2]
[352104437,1738949443132,-1392.61,0.00016438,2]
[352104439,1738949443141,-807.59,0.00016438,2]
[352104441,1738949443150,-180.20315349,0.00016438,2]
[352104443,1738949443159,-2810.81,0.00016438,2]
[352104445,1738949443169,-1217.06,0.00016438,2]
[352104447,1738949443178,-500.0,0.00016438,2]
[352104449,1738949443187,-1991.39,0.00016438,2]
[352104451,1738949443196,-1394.48,0.00016438,2]
[352104453,1738949443207,-500.0,0.00016438,2]
[352104456,1738949443216,-500.0,0.00016438,2]
[352104458,1738949443225,-1357.02,0.00016438,2]
[352104460,1738949443235,-3312.72,0.00016438,2]
[352104462,1738949443247,-500.0,0.00016438,2]
[352104464,1738949443258,-630.1,0.00016438,2]
[352104466,1738949443268,-1437.51,0.00016438,2]
[352104468,1738949443277,-500.0,0.00016438,2]
[352104470,1738949443287,-1478.74,0.00016438,2]
[352104472,1738949443296,-500.0,0.00016438,2]
[352104474,1738949443306,-1809.19,0.00016438,2]
[352104476,1738949443316,-500.0,0.00016438,2]
[352104478,1738949443324,-1048.41,0.00016438,2]
[352104480,1738949443333,-1406.93,0.00016438,2]
[352104482,1738949443343,-944.22,0.00016438,2]
[352104484,1738949443352,-500.0,0.00016438,2]
[352104486,1738949443361,-500.0,0.00016438,2]
[352104488,1738949443371,-500.0,0.00016438,2]
[352104489,1738949443379,-645.95,0.00016438,2]
[352104491,1738949443388,-500.0,0.00016438,2]
[352104493,1738949443397,-500.0,0.00016438,2]
[352104495,1738949443406,-284.08754702,0.00016438,2]
[352104497,1738949443414,-500.0,0.00016438,2]
[352104499,1738949443423,-500.0,0.00016438,2]
[352104501,1738949443432,-500.0,0.00016438,2]
[352104503,1738949443441,-2155.23,0.00016438,2]
[352104505,1738949443450,-500.0,0.00016438,2]
[352104507,1738949443461,-688.93,0.00016438,2]
[352104509,1738949443470,-2385.03,0.00016438,2]
[352104511,1738949443480,-1655.62,0.00016438,2]
[352104513,1738949443488,-500.0,0.00016438,2]
[352104515,1738949443498,-500.0,0.00016438,2]
[352104517,1738949443507,-336.19601293,0.00016438,2]
[352104519,1738949443516,-508.54,0.00016438,2]
[352104521,1738949443524,-1212.3,0.00016438,2]
[352104523,1738949443533,-2438.32,0.00016438,2]
[352104525,1738949443542,-500.0,0.00016438,2]
[352104527,1738949443551,-1808.51,0.00016438,2]
[352104529,1738949443559,-500.0,0.00016438,2]
[352104531,1738949443568,-500.0,0.00016438,2]
[352104533,1738949443577,-500.0,0.00016438,2]
[352104535,1738949443586,-507.16454836,0.00016438,2]
[352104537,1738949443595,-500.0,0.00016438,2]
[352104539,1738949443605,-1847.35,0.00016438,2]
[352104541,1738949443614,-3440.31,0.00016438,2]
[352104543,1738949443623,-500.0,0.00016438,2]
[352104545,1738949443632,-1720.31,0.00016438,2]
[352104547,1738949443642,-500.0,0.00016438,2]
[352104549,1738949443651,-2522.12,0.00016438,2]
[352104551,1738949443661,-500.0,0.00016438,2]
[352104553,1738949443670,-508.35,0.00016438,2]
[352104555,1738949443679,-2165.68,0.00016438,2]
[352104557,1738949443688,-1909.35,0.00016438,2]
[352104559,1738949443697,-580.22,0.00016438,2]
[352104561,1738949443705,-500.0,0.00016438,2]
[352104562,1738949443716,-2466.48,0.00016438,2]
[352104564,1738949443725,-500.0,0.00016438,2]
[352104566,1738949443734,-500.0,0.00016438,2]
[352104568,1738949443743,-500.0,0.00016438,2]
[352104570,1738949443753,-1526.96,0.00016438,2]
[352104572,1738949443762,-2980.37,0.00016438,2]
[352104574,1738949443771,-1709.16,0.00016438,2]
[352104576,1738949443781,-202.05757384,0.00016438,2]
[352104578,1738949443790,-500.0,0.00016438,2]
[352104580,1738949443799,-500.0,0.00016438,2]
[352104582,1738949443810,-500.0,0.00016438,2]
[352104584,1738949443820,-1685.22,0.00016438,2]
[352104586,1738949443829,-500.64087563,0.00016438,2]
[352104588,1738949443838,-500.0,0.00016438,2]
[352104590,1738949443849,-500.0,0.00016438,2]
[352104592,1738949443860,-5298.37,0.00016438,2]
[352104595,1738949443870,-3749.72,0.00016438,2]
[352104596,1738949443879,-500.0,0.00016438,2]
[352104598,1738949443888,-500.6836047,0.00016438,2]
[352104600,1738949443898,-1092.12,0.00016438,2]
[352104602,1738949443907,-2322.13,0.00016438,2]
[352104604,1738949443917,-1291.71,0.00016438,2]
[352104606,1738949443926,-500.0,0.00016438,2]
[352104608,1738949443936,-629.17,0.00016438,2]
[352104610,1738949443946,-937.76,0.00016438,2]
[352104612,1738949443955,-500.0,0.00016438,2]
[352104614,1738949443969,-1848.08,0.00016438,2]
[352104616,1738949443979,-513.1309948,0.00016438,2]
[352104618,1738949443988,-1110.17,0.00016438,2]
[352104620,1738949443998,-1681.14,0.00016438,2]
[352104622,1738949444007,-2478.3,0.00016438,2]
[352104624,1738949444017,-1398.26,0.00016438,2]
[352104626,1738949444026,-500.0,0.00016438,2]
[352104628,1738949444035,-500.0,0.00016438,7]
[352104630,1738949444044,-3606.91,0.00016438,2]
[352104632,1738949444054,-1519.37,0.00016438,2]
[352104634,1738949444063,-500.0,0.00016438,2]
[352104636,1738949444073,-500.0,0.00016438,2]
[352104638,1738949444082,-921.23,0.00016438,2]
[352104640,1738949444091,-500.0,0.00016438,2]
[352104642,1738949444101,-1763.53,0.00016438,2]
[352104644,1738949444110,-1271.66,0.00016438,2]
[352104646,1738949444119,-2336.24,0.00016438,2]
[352104648,1738949444129,-2842.27,0.00016438,2]
[352104650,1738949444138,-500.0,0.00016438,2]
[352104652,1738949444148,-1288.29,0.00016438,2]
[352104654,1738949444157,-500.0,0.00016438,2]
[352104656,1738949444168,-982.87,0.00016438,2]
[352104658,1738949444177,-1662.05,0.00016438,2]
[352104660,1738949444187,-500.0,0.00016438,2]
[352104662,1738949444197,-500.0,0.00016438,2]
[352104664,1738949444210,-500.0,0.00016438,2]
[352104666,1738949444220,-1149.01,0.00016438,2]
[352104668,1738949444230,-2864.15,0.00016438,2]
[352104670,1738949444239,-500.0,0.00016438,2]
[352104672,1738949444254,-500.0,0.00016438,2]
[352104674,1738949444263,-1470.05,0.00016438,2]
[352104676,1738949444272,-3475.93,0.00016438,2]
[352104678,1738949444282,-3386.45,0.00016438,2]
[352104679,1738949444291,-500.0,0.00016438,2]
[352104681,1738949444300,-674.0,0.00016438,2]
[352104683,1738949444309,-2341.18,0.00016438,2]
[352104685,1738949444318,-3417.55,0.00016438,2]
[352104687,1738949444329,-1604.96,0.00016438,2]
[352104689,1738949444338,-925.78,0.00016438,2]
[352104691,1738949444348,-500.0,0.00016438,2]
[352104693,1738949444356,-611.92,0.00016438,2]
[352104695,1738949444365,-500.0,0.00016438,2]
[352104697,1738949444374,-500.0,0.00016438,2]
[352104699,1738949444383,-500.0,0.00016438,2]
[352104701,1738949444393,-500.0,0.00016438,2]
[352104703,1738949444402,-500.0,0.00016438,2]
[352104705,1738949444410,-3651.84,0.00016438,2]
[352104707,1738949444420,-2143.23,0.00016438,2]
[352104709,1738949444429,-500.0,0.00016438,2]
[352104711,1738949444437,-500.0,0.00016438,2]
[352104713,1738949444446,-843.63,0.00016438,2]
[352104715,1738949444456,-3527.37,0.00016438,2]
[352104717,1738949444471,-1214.88,0.00016438,2]
[352104718,1738949444480,-3559.73,0.00016438,2]
[352104720,1738949444489,-500.0,0.00016438,2]
[352104722,1738949444498,-500.0,0.00016438,2]
[352104724,1738949444507,-500.0,0.00016438,2]
[352104726,1738949444516,-500.0,0.00016438,2]
[352104729,1738949444526,-2277.32,0.00016438,2]
[352104730,1738949444537,-500.0,0.00016438,2]
[352104732,1738949444546,-500.0,0.00016438,2]
[352104734,1738949444555,-500.0,0.00016438,2]
[352104736,1738949444563,-2331.7,0.00016438,2]
[352104738,1738949444572,-500.0,0.00016438,2]
[352104740,1738949444581,-2390.58,0.00016438,2]
[352104742,1738949444590,-500.0,0.00016438,2]
[352104744,1738949444599,-221.65336589,0.00016438,2]
[352104746,1738949444608,-1435.0,0.00016438,2]
[352104748,1738949444617,-841.31,0.00016438,2]
[352104750,1738949444626,-5982.73,0.00016438,2]
[352104752,1738949444635,-500.0,0.00016438,2]
[352104754,1738949444644,-643.88,0.00016438,2]
[352104756,1738949444653,-382.47,0.00016438,2]
[352104758,1738949444661,-500.0,0.00016438,13]
[352104760,1738949444670,-500.0,0.00016438,13]
[352104762,1738949444679,-500.0,0.00016438,13]
[352104764,1738949444689,-500.0,0.00016438,13]
[352104766,1738949444697,-500.0,0.00016438,13]
[352104768,1738949444709,-500.0,0.00016438,13]
[352104783,1738949444844,-500.0,0.00016438,13]
[352104785,1738949444854,-500.0,0.00016438,13]
[352104787,1738949444863,-500.0,0.00016438,13]
[352104789,1738949444872,-500.0,0.00016438,13]
[352104791,1738949444882,-500.0,0.00016438,13]
[352104793,1738949444891,-500.0,0.00016438,13]
[352104795,1738949444900,-500.0,0.00016438,13]
[352104797,1738949444909,-500.0,0.00016438,13]
[352104799,1738949444919,-500.0,0.00016438,13]
[352104801,1738949444928,-500.0,0.00016438,13]
[352104803,1738949444937,-500.0,0.00016438,13]
[352104805,1738949444946,-500.0,0.00016438,13]
[352104807,1738949444955,-500.0,0.00016438,13]
[352104809,1738949444967,-500.0,0.00016438,13]
[352104811,1738949444976,-500.0,0.00016438,13]
[352104813,1738949444986,-500.0,0.00016438,13]
[352104815,1738949444996,-500.0,0.00016438,13]
[352104817,1738949445006,-500.0,0.00016438,13]
[352104819,1738949445015,-500.0,0.00016438,13]
[352104821,1738949445024,-500.0,0.00016438,13]
[352104823,1738949445033,-500.0,0.00016438,13]
[352104825,1738949445043,-500.0,0.00016438,13]
[352104827,1738949445052,-500.0,0.00016438,13]
[352104829,1738949445061,-500.0,0.00016438,13]
[352104831,1738949445070,-500.0,0.00016438,13]
[352104833,1738949445080,-500.0,0.00016438,13]
[352104835,1738949445089,-500.0,0.00016438,13]
[352104837,1738949445099,-500.0,0.00016438,13]
[352104839,1738949445108,-500.0,0.00016438,13]
[352104841,1738949445125,-500.0,0.00016438,13]
[352104843,1738949445135,-500.0,0.00016438,13]
[352104845,1738949445145,-500.0,0.00016438,13]
[352104847,1738949445154,-500.0,0.00016438,13]
[352104849,1738949445163,-500.0,0.00016438,13]
[352104850,1738949445173,-500.0,0.00016438,13]
[352104852,1738949445183,-500.0,0.00016438,13]
[352104854,1738949445193,-500.0,0.00016438,13]
[352104856,1738949445203,-500.0,0.00016438,13]
[352104858,1738949445216,-498.0,0.00016438,13]
[352104860,1738949445225,-324.42725831,0.0001644,2]
[352104862,1738949445235,-324.42725831,0.0001644,2]
[352104864,1738949445245,-324.42725831,0.0001644,2]
[352104866,1738949445257,-324.42725831,0.0001644,2]
[352104868,1738949445268,-324.42725831,0.0001644,2]
[352104870,1738949445277,-324.42725831,0.0001644,2]
[352104873,1738949445287,-324.42725831,0.0001644,2]
[352104874,1738949445298,-324.42725831,0.0001644,2]
[352104877,1738949445308,-324.42725831,0.0001644,2]
[352104879,1738949445318,-324.42725831,0.0001644,2]
[352104881,1738949445328,-324.42725831,0.0001644,2]
[352104884,1738949445339,-324.42725831,0.0001644,2]
[352104885,1738949445348,-324.42725831,0.0001644,2]
[352104887,1738949445357,-324.42725831,0.0001644,2]
[352104889,1738949445367,-324.42725831,0.0001644,2]
[352104891,1738949445376,-324.42725831,0.0001644,2]
[352104893,1738949445386,-324.42725831,0.0001644,2]
[352104895,1738949445395,-324.42725831,0.0001644,2]
[352104897,1738949445405,-324.42725831,0.0001644,2]
[352104899,1738949445414,-324.42,0.0001644,2]
[352104901,1738949445423,-756.99693606,0.0001644,2]
[352104903,1738949445432,-756.99693606,0.0001644,2]
[352104905,1738949445441,-756.99693606,0.0001644,2]
[352104907,1738949445450,-756.99693606,0.0001644,2]
[352104909,1738949445462,-756.99693606,0.0001644,2]
[352104911,1738949445471,-756.99693606,0.0001644,2]
[352104913,1738949445481,-756.99693606,0.0001644,2]
[352104915,1738949445490,-756.99693606,0.0001644,2]
[352104917,1738949445499,-756.99693606,0.0001644,2]
[352104919,1738949445508,-756.99693606,0.0001644,2]
[352104921,1738949445519,-756.99693606,0.0001644,2]
[352104923,1738949445534,-756.99693606,0.0001644,2]
[352104925,1738949445544,-756.99693606,0.0001644,2]
[352104927,1738949445553,-756.99693606,0.0001644,2]
[352104929,1738949445563,-756.99693606,0.0001644,2]
[352104931,1738949445572,-756.99693606,0.0001644,2]
[352104933,1738949445582,-756.99693606,0.0001644,2]
[352104935,1738949445592,-756.99693606,0.0001644,2]
[352104937,1738949445601,-756.99693606,0.0001644,2]
[352104939,1738949445610,-756.99,0.0001644,2]
[352104941,1738949445620,-324.49260294,0.0001644,2]
[352104943,1738949445629,-324.49260294,0.0001644,2]
[352104945,1738949445638,-324.49260294,0.0001644,2]
[352104947,1738949445648,-324.49260294,0.0001644,2]
[352104949,1738949445656,-324.49260294,0.0001644,2]
[352104951,1738949445666,-324.49260294,0.0001644,2]
[352104952,1738949445675,-324.49260294,0.0001644,2]
[352104953,1738949445684,-324.49260294,0.0001644,2]
[352104954,1738949445693,-324.49260294,0.0001644,2]
[352104955,1738949445702,-324.49260294,0.0001644,2]
[352104956,1738949445714,-324.49260294,0.0001644,2]
[352104957,1738949445723,-324.49260294,0.0001644,2]
[352104958,1738949445733,-324.49260294,0.0001644,2]
[352104959,1738949445742,-324.49260294,0.0001644,2]
[352104960,1738949445751,-324.49260294,0.0001644,2]
[352104961,1738949445762,-324.49260294,0.0001644,2]
[352104962,1738949445772,-324.49260294,0.0001644,2]
[352104963,1738949445782,-324.49260294,0.0001644,2]
[352104964,1738949445791,-324.49260294,0.0001644,2]
[352104965,1738949445801,-324.49,0.0001644,2]
[352104966,1738949445811,-757.14940685,0.0001644,2]
[352104967,1738949445821,-757.14940685,0.0001644,2]
[352104969,1738949445830,-757.14940685,0.0001644,2]
[352104971,1738949445840,-757.14940685,0.0001644,2]
[352104973,1738949445850,-757.14940685,0.0001644,2]
[352104975,1738949445859,-757.14940685,0.0001644,2]
[352104977,1738949445868,-757.14940685,0.0001644,2]
[352104979,1738949445877,-757.14940685,0.0001644,2]
[352104981,1738949445886,-757.14940685,0.0001644,2]
[352104983,1738949445896,-757.14940685,0.0001644,2]
[352104985,1738949445905,-757.14940685,0.0001644,2]
[352104987,1738949445914,-757.14940685,0.0001644,2]
[352104989,1738949445923,-757.14940685,0.0001644,2]
[352104991,1738949445932,-757.14940685,0.0001644,2]
[352104993,1738949445940,-757.14940685,0.0001644,2]
[352104995,1738949445949,-757.14940685,0.0001644,2]
[352104997,1738949445959,-757.14940685,0.0001644,2]
[352104999,1738949445968,-757.14940685,0.0001644,2]
[352105001,1738949445976,-757.14940685,0.0001644,2]
[352105003,1738949445985,-757.14,0.0001644,2]
[352105005,1738949445994,-178.34246589,0.0001644,2]
[352105007,1738949446003,-178.34246589,0.0001644,2]
[352105009,1738949446012,-178.34246589,0.0001644,2]
[352105011,1738949446020,-178.34246589,0.0001644,2]
[352105013,1738949446029,-178.34246589,0.0001644,2]
[352105015,1738949446038,-178.34246589,0.0001644,2]
[352105017,1738949446047,-178.34246589,0.0001644,2]
[352105019,1738949446056,-178.34246589,0.0001644,2]
[352105021,1738949446067,-178.34246589,0.0001644,2]
[352105023,1738949446076,-178.34246589,0.0001644,2]
[352105025,1738949446085,-178.34246589,0.0001644,2]
[352105027,1738949446094,-178.34246589,0.0001644,2]
[352105029,1738949446103,-178.34246589,0.0001644,2]
[352105031,1738949446111,-178.34246589,0.0001644,2]
[352105032,1738949446120,-178.34246589,0.0001644,2]
[352105034,1738949446130,-178.34246589,0.0001644,2]
[352105036,1738949446139,-178.34246589,0.0001644,2]
[352105038,1738949446149,-178.34246589,0.0001644,2]
[352105040,1738949446158,-178.34246589,0.0001644,2]
[352105042,1738949446167,-178.34,0.0001644,2]
[352105045,1738949446176,-416.13242042,0.0001644,2]
[352105047,1738949446186,-416.13242042,0.0001644,2]
[352105049,1738949446196,-416.13242042,0.0001644,2]
[352105051,1738949446206,-416.13242042,0.0001644,2]
[352105053,1738949446218,-416.13242042,0.0001644,2]
[352105056,1738949446228,-416.13242042,0.0001644,2]
[352105058,1738949446237,-416.13242042,0.0001644,2]
[352105060,1738949446257,-416.13242042,0.0001644,2]
[352105062,1738949446266,-416.13242042,0.0001644,2]
[352105064,1738949446275,-416.13242042,0.0001644,2]
[352105066,1738949446285,-416.13242042,0.0001644,2]
[352105067,1738949446295,-416.13242042,0.0001644,2]
[352105069,1738949446306,-416.13242042,0.0001644,2]
[352105071,1738949446316,-416.13242042,0.0001644,2]
[352105073,1738949446326,-416.13242042,0.0001644,2]
[352105075,1738949446337,-416.13242042,0.0001644,2]
[352105077,1738949446347,-416.13242042,0.0001644,2]
[352105079,1738949446356,-416.13242042,0.0001644,2]
[352105081,1738949446365,-416.13242042,0.0001644,2]
[352105083,1738949446375,-416.13,0.0001644,2]
[352105086,1738949446385,-3127.727,0.00016443,2]
[352105088,1738949446394,-75339.58772511,0.00016452,2]
[352105089,1738949446404,-2000.0,0.00016491,2]
[352105092,1738949446413,-150.0,0.00016497,2]
[352105093,1738949446422,-2000.0,0.00016499,2]
[352105096,1738949446432,-2000.0,0.00016499,2]
[352105098,1738949446442,-2000.0,0.00016499,2]
[352105099,1738949446452,-2000.0,0.00016499,2]
[352105101,1738949446465,-2000.0,0.00016499,2]
[352105103,1738949446476,-2000.0,0.00016499,2]
[352105105,1738949446485,-537.62,0.00016499,2]
[352105107,1738949446495,-999.0,0.00016499,2]
[352105110,1738949446506,-2387.0,0.000165,2]
[352105112,1738949446516,-3591920.89123773,0.000165,5]
[352105140,1738949446777,-41653.06367583,0.000165,5]
[352105144,1738949446806,-7987.91088528,0.000165,5]
[352105192,1738949447261,-1000.0,8.851e-05,2]
[352105194,1738949447270,-4539.76,0.00016438,2]
[352105196,1738949447280,-500.0,0.00016438,2]
[352105198,1738949447290,-275.5854475,0.000165,5]
[352105203,1738949447334,-435.38038272,0.000165,5]
[352105205,1738949447346,-812.31937085,0.000165,5]
[352105208,1738949447368,-99120.00008107,0.000165,5]
[352105211,1738949447380,-1533.2995279,0.000165,5]
[352105213,1738949447392,-596.0138533,0.000165,5]
[352105222,1738949447482,-500.0,0.00016438,2]
[352105224,1738949447492,-88.21302851,0.000165,5]
[352105228,1738949447516,-350.08446622,0.000165,5]
[352105230,1738949447529,-658.3766224,0.000165,5]
[352105276,1738949447982,-396.68,0.00013699,2]
[352105278,1738949447992,-592.31634,0.000144,2]
[352105280,1738949448003,-500.0,0.00016438,2]
[352105282,1738949448013,-442.25225934,0.00016438,2]
[352105284,1738949448024,-67.61005931,0.00016438,2]
[352105286,1738949448036,-188.02072367,0.00016438,2]
[352105288,1738949448046,-401.51044429,0.000165,5]
[352105333,1738949448641,-500.0,0.00016438,2]
[352105335,1738949448652,-500.0,0.00016438,2]
[352105337,1738949448662,-500.92227825,0.00016438,2]
[352105339,1738949448673,-500.0,0.00016438,2]
[352105341,1738949448683,-500.0,0.00016438,2]
[352105343,1738949448693,-4543.60815675,0.000165,5]
[352105345,1738949448705,-4310.13902088,0.000165,5]
[352105348,1738949448730,-152835.60179374,0.000165,5]
[352105350,1738949448742,-1021.17564821,0.000165,5]
[352105355,1738949448781,-6686.71919497,0.000165,5]
[352105357,1738949448793,-1049.66192647,0.000165,5]
[352105359,1738949448804,-313.664995,0.000165,5]
[352105362,1738949448822,-500.0,0.00016438,2]
[352105364,1738949448831,-809.7699952,0.000165,5]
[352106056,1738949738668,4551.0,9.995e-05,11]
[352106101,1738950631769,-802.31557787,8.851e-05,2]
[352106107,1738950631824,-1697.68442213,8.851e-05,2]
[352106109,1738950631833,-9577.14560197,8.973e-05,2]
[352106120,1738950631931,-5713.33445006,8.973e-05,2]
[352106132,1738950632038,-2356.50920683,8.973e-05,2]
[352106135,1738950632050,-7209.28224114,8.973e-05,2]
[352106136,1738950632059,-42743.85702625,9.995e-05,11]
[352106139,1738950632071,-24838.01696604,9.995e-05,11]
[352106141,1738950632081,-468.53761822,9.995e-05,11]
[352106143,1738950632093,-49333.44234574,9.995e-05,11]
[352106519,1738950637676,-13.14604375,9.995e-05,11]
[352106520,1738950637686,-39289.33701245,0.0001,2]
[352106521,1738950637841,-643.25932,0.0001,2]
[352106522,1738950637906,-95304.45205037,0.0001,2]
[352106523,1738950637915,-151.51,0.00010137,2]
[352106524,1738950637924,-1191.4,0.00011039,2]
[352106525,1738950637934,-56314.80053845,0.00011099,2]
[352106526,1738950637943,-56314.80053843,0.00011099,2]
[352106528,1738950637953,-56314.80053843,0.00011425,2]
[352106530,1738950637962,-160.72,0.00011577,2]
[352106532,1738950637971,-150.0,0.00011639,2]
[352106534,1738950637980,-1500.0,0.0001182,2]
[352106536,1738950637990,-245.19,0.00011861,2]
[352106538,1738950637999,-17934.09,0.00011932,2]
[352106540,1738950638008,-166.5,0.00011936,2]
[352106542,1738950638017,-500.0,0.00011975,2]
[352106543,1738950638026,-56314.80053843,0.00012119,2]
[352106545,1738950638035,-604.44,0.00012132,2]
[352106547,1738950638044,-282.84,0.00012203,2]
[352106549,1738950638053,-1244.77,0.00012272,2]
[352106551,1738950638063,-548.22,0.000123,2]
[352106554,1738950638072,-250.0,0.0001234,2]
[352106557,1738950638081,-150.0,0.00012466,2]
[352106559,1738950638090,-5004.63559639,0.000125,2]
[352106561,1738950638100,-196.51655174,0.00012501,2]
[352106563,1738950638109,-45376.64,0.00012517,2]
[352106565,1738950638118,-500.0,0.00012601,2]
[352106567,1738950638128,-61948.62,0.00012603,2]
[352106569,1738950638137,-18023.29,0.00012608,2]
[352106571,1738950638147,-23900.0,0.00012752,2]
[352106573,1738950638156,-56314.80053843,0.00012813,2]
[352106576,1738950638165,-1600.0,0.00012876,2]
[352106579,1738950638175,-196.51655167,0.00012921,2]
[352106582,1738950638184,-550.0,0.00013,2]
[352106585,1738950638194,-1191.4,0.00013303,2]
[352106588,1738950638203,-196.51655167,0.00013342,2]
[352106590,1738950638212,-176.52,0.00013458,2]
[352106592,1738950638222,-56314.80053843,0.00013508,2]
[352106594,1738950638231,-200.0,0.00013699,2]
[352106596,1738950638240,-20442.9,0.00013699,2]
[352106598,1738950638250,-317.34,0.00013699,2]
[352106600,1738950638259,-21700.12,0.00013699,2]
[352106602,1738950638267,-6581.82,0.000137,2]
[352106604,1738950638276,-6581.82,0.000137,2]
[352106606,1738950638285,-200.0,0.00013761,2]
[352106623,1738950638432,-196.51655167,0.00013762,2]
[352106625,1738950638442,-3441.76,0.0001377,2]
[352106627,1738950638451,-1779.03,0.0001377,2]
[352106629,1738950638460,-1289.06,0.00013783,2]
[352106631,1738950638469,-1000.0,0.00013787,2]
[352106633,1738950638478,-548.22,0.00013838,2]
[352106634,1738950638487,-900.0,0.00014,15]
[352106636,1738950638496,-3189.90319976,0.00014179,2]
[352106638,1738950638506,-196.51655167,0.00014182,2]
[352106640,1738950638515,-56314.80053843,0.00014202,2]
[352106642,1738950638525,-1600.0,0.00014246,2]
[352106644,1738950638534,-9053.73465627,0.00014393,2]
[352106646,1738950638543,-5000.0,0.00014393,2]
[352106649,1738950638553,-5000.0,0.00014393,2]
[352106650,1738950638562,-5000.0,0.00014393,2]
[352106653,1738950638571,-5000.0,0.00014393,2]
[352106654,1738950638581,-160.72,0.00014471,2]
[352106657,1738950638591,-196.51655167,0.00014603,2]
[352106658,1738950638602,-290.07252969,0.00014844,2]
[352106661,1738950638611,-215.53533596,0.000149,2]
[352106663,1738950638621,-215.53533594,0.000149,2]
[352106665,1738950638630,-215.53533594,0.000149,2]
[352106667,1738950638640,-500.0,0.000149,13]
[352106669,1738950638653,-500.0,0.000149,13]
[352106671,1738950638663,-500.0,0.000149,13]
[352106673,1738950638673,-500.0,0.000149,13]
[352106675,1738950638682,-500.0,0.000149,13]
[352106677,1738950638693,-500.0,0.000149,13]
[352106679,1738950638702,-500.0,0.000149,13]
[352106681,1738950638713,-500.0,0.000149,13]
[352106683,1738950638723,-500.0,0.000149,13]
[352106685,1738950638732,-500.0,0.000149,13]
[352106687,1738950638741,-500.0,0.000149,13]
[352106689,1738950638751,-500.0,0.000149,13]
[352106691,1738950638760,-500.0,0.000149,13]
[352106693,1738950638769,-500.0,0.000149,13]
[352106694,1738950638779,-500.0,0.000149,13]
[352106697,1738950638788,-500.0,0.000149,13]
[352106698,1738950638798,-500.0,0.000149,13]
[352106700,1738950638807,-500.0,0.000149,13]
[352106702,1738950638817,-500.0,0.000149,13]
[352106704,1738950638826,-500.0,0.000149,13]
[352106706,1738950638835,-500.0,0.000149,13]
[352106708,1738950638845,-500.0,0.000149,13]
[352106711,1738950638858,-500.0,0.000149,13]
[352106713,1738950638867,-500.0,0.000149,13]
[352106715,1738950638877,-500.0,0.000149,13]
[352106717,1738950638886,-500.0,0.000149,13]
[352106719,1738950638896,-500.0,0.000149,13]
[352106721,1738950638905,-500.0,0.000149,13]
[352106723,1738950638915,-500.0,0.000149,13]
[352106724,1738950638924,-500.0,0.000149,13]
[352106726,1738950638934,-500.0,0.000149,13]